bitfinex-derivatives/quotes_ETHF0:USTF0_20250612
["timestamp","ask_amount","ask_price","bid_price","bid_amount"]
[1749710217210,0.72289,2766.2,2765.9,0.72295]
[1749710217415,1.44600271,2766.1,2766.0,22.1239]
[1749710217619,2.16890271,2766.1,2766.0,23.3618]
[1749710218008,1.44600271,2766.1,2766.0,23.3618]
[1749710218210,0.7229,2766.1,2766.0,23.3618]
[1749710219523,0.7229,2766.1,2766.0,1.2419]
[1749710219820,2.16888091,2766.1,2766.0,20.88]
[1749710220126,0.72298,2765.8,2765.7,5.51]
[1749710220317,2.16896091,2765.8,2765.7,22.093]
[1749710220612,2.16896091,2765.8,2765.7,4.8939]
[1749710220818,5.37676091,2765.8,2765.7,4.297]
[1749710221117,5.37676091,2765.8,2765.7,20.88]
[1749710223219,5.37676091,2765.8,2765.7,4.297]
[1749710223419,5.37676091,2765.8,2765.7,20.88]
[1749710224726,5.43877811,2765.8,2765.7,20.88]
[1749710225219,5.43877811,2765.8,2765.7,16.583]
[1749710228521,0.72303,2765.6,2765.5,0.00542094]
[1749710228720,2.16901091,2765.6,2765.5,16.58842094]
[1749710231518,2.16930992,2765.6,2765.5,16.58842094]
[1749710231714,2.16930992,2765.6,2765.5,17.31148094]
[1749710232022,0.72303,2765.6,2765.5,17.80012094]
[1749710232217,0.72303,2765.6,2765.5,18.52318094]
[1749710232416,0.72303,2765.7,2765.5,18.52318094]
[1749710232722,0.0620172,2765.8,2765.7,0.72301]
[1749710233019,0.0620172,2765.8,2765.7,3.93081]
[1749710233323,0.72287,2766.3,2765.7,8.8538]
[1749710233514,0.72287,2766.3,2766.1,0.72289]
[1749710233712,3.2078,2766.5,2766.2,23.3526]
[1749710233911,2.16865573,2766.4,2766.3,4.295]
[1749710234121,0.72282,2766.4,2766.3,5.5067]
[1749710236123,0.72283,2766.4,2766.3,5.5067]
[1749710239422,0.72283,2766.4,2766.3,4.295]
[1749710240025,0.7848472,2766.4,2766.3,4.295]
[1749710243730,0.7848472,2766.4,2766.3,5.5406]
[1749710247033,0.7848472,2766.4,2766.3,4.295]
[1749710249023,0.7848472,2766.4,2766.3,20.871]
[1749710250420,0.72287,2766.2,2766.1,0.72289]
[1749710250626,0.72287,2766.2,2766.1,20.869]
[1749710251321,0.72287,2766.2,2766.1,4.293]
[1749710251523,0.72287,2766.2,2766.1,20.869]
[1749710253133,0.6004,2766.3,2766.1,21.5919]
[1749710253432,0.6004,2766.3,2766.2,0.72287]
[1749710253632,1.32325,2766.3,2766.1,21.59188]
[1749710254128,0.72287,2766.2,2766.1,21.59188]
[1749710254330,0.72287,2766.2,2766.1,20.869]
[1749710255033,0.72287,2766.2,2766.1,21.5919]
[1749710255233,0.7848872,2766.2,2766.1,21.5919]
[1749710255430,0.7848872,2766.2,2766.1,20.869]
[1749710256031,7.2e-06,2766.2,2766.1,21.5919]
[1749710256235,3.2078,2767.2,2766.3,1.80708]
[1749710256435,3.93042,2767.2,2766.8,0.72272]
[1749710256637,0.72264,2767.1,2766.9,0.72267]
[1749710256835,3.93043,2767.2,2766.9,1.94907]
[1749710257029,3.2078,2767.2,2766.9,1.2264]
[1749710257236,3.93042,2767.2,2767.0,0.72266]
[1749710257535,3.2078,2767.2,2766.9,1.94907]
[1749710257835,0.72264,2767.1,2766.9,1.94907]
[1749710258936,0.72264,2767.1,2766.9,1.2264]
[1749710260034,0.5887,2767.2,2767.0,0.72265]
[1749710260235,1.60042,2767.2,2767.0,0.72265]
[1749710260739,0.8778,2767.2,2767.0,0.72265]
[1749710260939,1.60043,2767.2,2766.9,1.94907]
[1749710261238,1.60043,2767.2,2767.0,0.72266]
[1749710261441,1.60043,2767.2,2766.9,1.94907]
[1749710261637,1.60043,2767.2,2766.9,1.2264]
[1749710262139,1.60043,2767.2,2767.0,0.72266]
[1749710262341,0.72265,2767.1,2766.9,1.94908]
[1749710262536,0.72265,2767.1,2766.9,1.2264]
[1749710262741,0.72265,2767.1,2766.9,1.94908]
[1749710262941,1.60043,2767.2,2766.9,1.94908]
[1749710263443,1.60042,2767.2,2767.0,0.72266]
[1749710265941,0.8778,2767.2,2767.0,0.72266]
[1749710266147,0.8778,2767.2,2766.9,1.2264]
[1749710266346,0.8778,2767.2,2767.1,0.72264]
[1749710267337,0.8778,2767.2,2766.9,2.48492094]
[1749710267338,0.72243,2767.9,2767.3,1.80647]
[1749710267546,0.6018,2767.8,2767.4,21.4551]
[1749710267844,1.32426,2767.8,2767.6,0.7225]
[1749710268048,0.72248,2767.7,2767.5,1.33802]
[1749710268847,0.00542094,2767.9,2767.8,0.72245]
[1749710269148,0.00542094,2767.9,2767.8,5.01345]
[1749710269949,0.00542094,2767.9,2767.8,4.291]
[1749710270748,0.00542094,2767.9,2767.8,5.01345]
[1749710270947,0.00542094,2767.9,2767.8,4.291]
[1749710272152,0.00542094,2767.9,2767.8,5.01345]
[1749710273553,0.00542094,2767.9,2767.8,4.291]
[1749710273749,0.72785094,2767.9,2767.8,4.291]
[1749710273948,0.72785094,2767.9,2767.6,3.93029]
[1749710274145,0.6074,2767.8,2767.7,20.859]
[1749710275254,0.00542094,2767.9,2767.7,21.58148]
[1749710275555,0.00542094,2767.9,2767.8,1.35165]
[1749710275752,0.00542094,2767.9,2767.8,0.6292]
[1749710275952,0.00542094,2767.9,2767.8,21.4862]
[1749710276253,0.72785094,2767.9,2767.8,21.4862]
[1749710278560,0.72785094,2767.9,2767.8,20.857]
[1749710280860,0.00542094,2767.9,2767.8,21.57945]
[1749710282063,0.72785094,2767.9,2767.8,20.857]
[1749710283163,0.00542094,2767.9,2767.8,21.57945]
[1749710283958,0.6247,2768.6,2768.3,0.72231]
[1749710284164,1.32088,2768.5,2768.4,20.855]
[1749710284355,0.5986,2768.5,2768.4,20.855]
[1749710285257,1.32087,2768.5,2768.4,20.855]
[1749710287257,0.5986,2768.5,2768.4,20.855]
[1749710287463,1.32087,2768.5,2768.4,20.855]
[1749710291167,0.72232,2768.3,2768.2,3.819]
[1749710291467,0.72232,2768.3,2768.2,24.671]
[1749710291663,0.72232,2768.3,2768.2,3.2078]
[1749710291864,0.7224,2768.0,2767.9,4.289]
[1749710292064,0.7224,2768.0,2767.9,20.852]
[1749710293471,1.36209,2768.1,2767.9,21.57443]
[1749710293865,0.6397,2768.1,2767.9,20.852]
[1749710294269,0.6397,2768.1,2767.9,21.57442]
[1749710294468,0.6397,2768.1,2768.0,0.7224]
[1749710294872,4.398,2768.6,2768.0,1.36769]
[1749710295174,0.72234,2768.3,2768.1,0.72238]
[1749710295368,0.6397,2768.5,2768.0,1.2513]
[1749710295567,0.72236,2768.2,2768.0,1.2513]
[1749710295967,0.72238,2768.1,2768.0,1.2513]
[1749710296169,0.6397,2768.5,2768.0,1.2513]
[1749710296370,0.6397,2768.5,2768.4,0.7223]
[1749710296671,0.6397,2768.5,2768.3,0.72231]
[1749710297168,0.6397,2768.5,2768.4,0.6017]
[1749710297672,0.72765094,2768.7,2768.4,1.324]
[1749710297874,0.72225,2768.6,2768.5,16.563]
[1749710299375,0.72766094,2768.7,2768.5,16.563]
[1749710299569,0.72225,2768.6,2768.5,16.563]
[1749710301879,0.72766094,2768.7,2768.5,17.28527]
[1749710302175,0.72225,2768.6,2768.5,16.563]
[1749710305473,0.00542094,2768.7,2768.3,0.00542094]
[1749710305774,0.7223,2768.4,2768.3,16.56642094]
[1749710306369,1.9334,2768.4,2768.3,16.56642094]
[1749710307581,3.37822601,2768.4,2768.3,16.56642094]
[1749710312374,2.76542601,2768.4,2768.3,16.56642094]
[1749710312579,0.5983,2768.4,2768.3,17.28874094]
[1749710312882,1.36665,2768.6,2768.3,16.56642094]
[1749710313083,0.72227,2768.5,2768.3,16.56642094]
[1749710313281,0.72227,2768.5,2768.4,0.7223]
[1749710313480,0.6444,2768.6,2768.4,0.7223]
[1749710313780,0.72229,2768.5,2768.3,16.56642094]
[1749710313981,0.72229,2768.5,2768.3,18.53093094]
[1749710314279,0.72226,2768.6,2768.4,0.7223]
[1749710314480,0.00542094,2768.7,2768.4,1.9645]
[1749710314680,0.72227,2768.6,2768.5,0.6344]
[1749710315381,0.00542094,2768.7,2768.5,0.6344]
[1749710315686,0.00542094,2768.7,2768.5,1.8766]
[1749710316182,0.00542094,2768.7,2768.5,2.59886]
[1749710316576,0.00542094,2768.7,2768.5,1.8766]
[1749710316771,0.72765094,2768.7,2768.5,2.59887]
[1749710317278,0.00542094,2768.7,2768.6,0.72225]
[1749710317775,0.00542094,2768.7,2768.6,1.91555]
[1749710322082,0.00542094,2768.7,2768.6,17.28125]
[1749710322583,0.00542094,2768.7,2768.6,16.559]
[1749710322785,0.00542094,2768.7,2768.6,17.28125]
[1749710323385,0.63482094,2768.7,2768.6,17.28125]
[1749710324680,1.35704094,2768.7,2768.6,16.559]
[1749710324883,0.72225,2768.6,2768.5,0.6344]
[1749710325084,0.72225,2768.6,2768.5,16.558]
[1749710326286,0.00542094,2768.7,2768.6,0.72225]
[1749710326990,0.00542094,2768.7,2768.6,1.99645]
[1749710329393,3.2078,2769.2,2768.6,1.99645]
[1749710329692,2.88034693,2772.4,2770.8,3.617]
[1749710329895,1.54958271,2773.1,2772.0,3.2078]
[1749710330086,1.2671,2773.1,2772.5,3.2078]
[1749710330388,1.2671,2773.1,2772.6,18.064]
[1749710330586,1.27244721,2773.1,2772.8,3.2078]
[1749710331092,1.27244721,2773.1,2772.9,0.54179254]
[1749710331295,1.27244721,2773.1,2772.8,3.2078]
[1749710331296,1.27244721,2773.1,2772.8,8.3108]
[1749710331592,1.27244721,2773.1,2772.9,0.8797372]
[1749710331793,1.27244721,2773.1,2772.8,3.2078]
[1749710332091,1.27244721,2773.1,2772.9,18.044]
[1749710332293,1.27244721,2773.1,2773.0,0.87801525]
[1749710332490,1.27244721,2773.1,2772.9,18.044]
[1749710332693,1.27244721,2773.1,2773.0,0.33805959]
[1749710332896,1.27244721,2773.1,2772.9,18.044]
[1749710332897,1.27244721,2773.1,2772.8,3.2078]
[1749710333193,0.72112,2773.0,2772.9,0.878322]
[1749710333391,0.72111,2773.0,2772.7,18.042]
[1749710333585,1.2691,2772.9,2772.8,0.87841117]
[1749710333792,1.2691,2772.9,2772.7,18.042]
[1749710333987,1.2691,2772.9,2772.8,0.53279401]
[1749710334195,0.72116,2772.8,2772.5,3.2132094]
[1749710334393,1.2691,2772.7,2772.5,21.2562094]
[1749710334791,0.7212,2772.6,2772.5,0.0054094]
[1749710335088,0.72122,2772.6,2772.2,3.2078]
[1749710335293,1.2131,2772.5,2772.3,0.72127]
[1749710335794,1.2131,2772.5,2772.2,3.9291]
[1749710336494,1.2131,2772.5,2772.2,3.2078]
[1749710336695,1.2131,2772.5,2772.2,21.2188]
[1749710336894,1.93434,2772.5,2772.2,21.2188]
[1749710337293,1.2131,2772.5,2772.2,21.2188]
[1749710337498,0.72126,2772.4,2772.2,21.2188]
[1749710337698,1.2131,2772.3,2772.2,21.2188]
[1749710337900,1.93438,2772.3,2772.2,3.2078]
[1749710338094,0.72131,2772.2,2772.1,0.0054094]
[1749710338294,0.72139,2771.9,2771.8,3.2078]
[1749710341095,0.72134,2772.1,2771.8,2.235]
[1749710341399,1.97837,2772.0,2771.8,2.9564]
[1749710341599,0.72139,2771.9,2771.8,2.235]
[1749710341898,1.97839,2771.9,2771.8,2.235]
[1749710342703,1.257,2771.9,2771.8,2.235]
[1749710342904,1.97839,2771.9,2771.8,2.235]
[1749710343204,3.2078,2772.6,2771.8,2.235]
[1749710343497,0.72131,2772.2,2772.1,3.2078]
[1749710343698,1.257,2772.5,2772.1,3.2078]
[1749710343897,0.6447,2772.7,2772.4,3.2078]
[1749710344095,0.72128,2772.3,2772.2,17.927]
[1749710344598,0.6447,2772.7,2772.2,17.927]
[1749710344901,0.6447,2772.7,2772.4,3.2078]
[1749710345093,0.72123,2772.5,2772.4,3.2078]
[1749710345294,3.2078,2772.9,2772.4,3.2078]
[1749710345509,0.72123,2772.5,2772.4,3.2078]
[1749710346007,3.2078,2772.9,2772.4,3.2078]
[1749710346299,0.72123,2772.5,2772.4,3.2078]
[1749710346703,1.80808721,2773.1,2772.4,3.2078]
[1749710346704,0.00534721,2773.1,2772.4,3.2078]
[1749710347004,0.00534721,2773.1,2772.7,3.2078]
[1749710347005,0.72117,2772.8,2772.7,3.2078]
[1749710347396,0.00534721,2773.1,2772.7,8.3048]
[1749710347697,0.72641721,2773.1,2773.0,3.2078]
[1749710348096,0.72641721,2773.1,2773.0,3.70644074]
[1749710348097,0.00534721,2773.1,2773.0,3.70644074]
[1749710348300,0.72641721,2773.1,2773.0,3.2078]
[1749710348501,0.72641721,2773.1,2773.0,21.1068]
[1749710349703,0.00534721,2773.1,2773.0,21.1068]
[1749710349901,0.00534721,2773.1,2773.0,21.8279]
[1749710350503,0.72641721,2773.1,2773.0,21.1068]
[1749710351096,0.00534721,2773.1,2773.0,21.8279]
[1749710351302,0.72641721,2773.1,2773.0,21.1068]
[1749710351706,0.72641721,2773.1,2773.0,3.2078]
[1749710351900,0.72641721,2773.1,2773.0,21.0708]
[1749710352296,0.72641721,2773.1,2773.0,3.2078]
[1749710354201,0.72115,2772.8,2772.7,3.2078]
[1749710355905,0.72115,2772.8,2772.7,21.0298]
[1749710356604,0.72115,2772.8,2772.7,3.2078]
[1749710356804,0.72115,2772.8,2772.7,21.0178]
[1749710359109,0.72123,2772.5,2772.4,5.097]
[1749710359307,0.72123,2772.5,2772.4,22.88]
[1749710361413,0.72123,2772.5,2772.3,25.0258]
[1749710361414,0.72126,2772.4,2772.3,25.0258]
[1749710361616,0.72126,2772.4,2772.3,47.7948]
[1749710362807,0.72126,2772.4,2772.3,30.0418]
[1749710363018,0.72126,2772.4,2772.3,8.2238]
[1749710363309,0.72133,2772.1,2772.0,3.2078]
[1749710363508,0.72133,2772.1,2772.0,20.9408]
[1749710364909,0.72133,2772.1,2772.0,20.9228]
[1749710366016,1.8649572,2772.8,2772.0,20.9228]
[1749710366216,0.72123,2772.5,2772.4,3.2078]
[1749710366716,0.72123,2772.5,2772.4,17.721]
[1749710368617,0.72123,2772.5,2772.4,18.44226]
[1749710369414,0.72121,2772.6,2772.5,0.72123]
[1749710370109,0.72123,2772.5,2772.4,17.721]
[1749710370717,0.72123,2772.5,2772.4,18.44226]
[1749710371316,0.0620172,2772.8,2772.4,17.721]
[1749710371618,0.72118,2772.7,2772.6,3.2078]
[1749710373815,0.0620172,2772.8,2772.6,3.2078]
[1749710373816,0.0620172,2772.8,2772.7,0.72118]
[1749710374018,0.0620172,2772.8,2772.7,1.97048]
[1749710374216,0.0620172,2772.8,2772.7,43.93828]
[1749710375022,0.72643721,2773.1,2772.9,0.72112]
[1749710375215,0.72643721,2773.1,2773.0,25.8938]
[1749710376221,0.72643721,2773.1,2773.0,26.6149]
[1749710376222,0.00534721,2773.1,2773.0,26.6149]
[1749710377316,0.00534721,2773.1,2773.0,29.4742822]
[1749710378918,0.00534721,2773.1,2773.0,6.7882822]
[1749710379113,0.00534721,2773.1,2773.0,29.4332822]
[1749710380120,5.00992,2774.0,2773.4,0.72098]
[1749710380319,0.72096,2773.6,2773.5,17.608]
[1749710381326,0.0054094,2773.8,2773.5,17.608]
[1749710381527,0.0054094,2773.8,2773.7,3.92872]
[1749710382226,0.7262994,2773.8,2773.7,3.2078]
[1749710382522,0.7262994,2773.8,2773.7,3.92872]
[1749710382725,0.0054094,2773.8,2773.7,3.92872]
[1749710383629,0.72082,2774.1,2773.9,0.72085]
[1749710383825,0.72082,2774.1,2774.0,17.579]
[1749710384024,0.72084,2774.0,2773.8,0.72087]
[1749710384217,1.32249,2774.3,2773.9,22.591]
[1749710384423,0.7208,2774.2,2774.0,3.92862]
[1749710384829,0.72081,2774.1,2774.0,3.92862]
[1749710385127,0.72081,2774.1,2774.0,3.2078]
[1749710386324,0.72081,2774.1,2774.0,25.7818]
[1749710386519,0.72081,2774.1,2774.0,3.2078]
[1749710386723,0.72089,2773.8,2773.7,3.2078]
[1749710386925,0.72089,2773.9,2773.7,26.48872]
[1749710387228,3.59005,2774.3,2773.7,25.7678]
[1749710387729,0.72088,2773.9,2773.7,25.7678]
[1749710387932,1.7881,2774.3,2773.7,26.4887]
[1749710388228,3.59002,2774.3,2773.8,22.547]
[1749710388431,0.72087,2773.9,2773.8,22.547]
[1749710389432,0.72089,2773.8,2773.7,8.2218]
[1749710389735,0.72089,2773.8,2773.7,25.7458]
[1749710389936,0.72089,2773.8,2773.7,25.5818]
[1749710390426,0.72089,2773.8,2773.7,3.2078]
[1749710390620,0.72089,2773.8,2773.7,8.0668]
[1749710390826,0.72089,2773.8,2773.7,25.5718]
[1749710391232,0.72089,2773.8,2773.7,8.0668]
[1749710391426,0.72089,2773.8,2773.7,20.7068]
[1749710392138,0.72089,2773.8,2773.7,20.7028]
[1749710393722,0.72089,2773.8,2773.7,3.2078]
[1749710393928,0.72089,2773.8,2773.7,20.6978]
[1749710394427,0.72089,2773.8,2773.7,3.2078]
[1749710394638,0.72089,2773.8,2773.7,20.6878]
[1749710395529,0.72089,2773.8,2773.7,20.6818]
[1749710397223,1.182,2773.9,2773.3,3.2132094]
[1749710397423,0.721,2773.4,2773.3,3.2132094]
[1749710397629,0.721,2773.4,2773.3,20.6592094]
[1749710398831,0.72099,2773.5,2773.3,20.6592094]
[1749710399032,1.2703,2773.5,2773.3,20.6592094]
[1749710399334,0.721,2773.4,2773.3,20.6592094]
[1749710400132,5.00978,2774.2,2773.3,20.6592094]
[1749710400331,0.72096,2773.6,2773.5,0.72096]
[1749710400632,1.2703,2773.9,2773.5,4.859]
[1749710400835,3.04354,2774.0,2773.6,3.92873]
[1749710400836,1.2414,2774.0,2773.6,3.92873]
[1749710401050,0.72092,2773.8,2773.7,17.417]
[1749710401236,0.72092,2773.8,2773.7,20.27372416]
[1749710401430,0.72092,2773.8,2773.7,17.417]
[1749710402238,0.72092,2773.8,2773.7,20.27372416]
[1749710402435,0.72092,2773.8,2773.7,17.417]
[1749710402738,0.72092,2773.7,2773.6,3.2078]
[1749710402937,1.98222,2773.7,2773.6,3.2078]
[1749710403131,1.98222,2773.7,2773.6,20.6138]
[1749710403434,1.98222,2773.7,2773.6,20.6158]
[1749710403637,1.98222,2773.7,2773.6,3.2078]
[1749710403936,0.721,2773.4,2773.3,3.2132094]
[1749710404127,0.721,2773.4,2773.3,20.6142094]
[1749710404330,0.721,2773.4,2773.3,3.2132094]
[1749710404726,0.721,2773.4,2773.3,20.6102094]
[1749710404928,5.721,2773.4,2773.3,0.0054094]
[1749710405129,0.72118,2772.7,2772.6,6.7598619]
[1749710405331,0.72118,2772.7,2772.6,20.6018]
[1749710405733,0.72118,2772.7,2772.6,20.6008]
[1749710406136,0.72123,2772.5,2772.4,0.0054094]
[1749710406327,0.72123,2772.5,2772.4,17.3954094]
[1749710406531,0.72123,2772.5,2772.4,0.0054094]
[1749710407135,0.72119,2772.7,2772.5,0.72121]
[1749710407335,0.72119,2772.7,2772.4,17.3934094]
[1749710407336,0.72122,2772.6,2772.4,18.7388494]
[1749710407537,0.72122,2772.6,2772.5,4.859]
[1749710408641,0.72119,2772.7,2772.5,4.859]
[1749710408840,0.72119,2772.7,2772.6,3.8171]
[1749710409035,0.72119,2772.7,2772.6,3.2078]
[1749710409239,0.72119,2772.7,2772.6,20.5968]
[1749710409737,0.72119,2772.7,2772.6,3.2078]
[1749710410038,1.2839,2772.8,2772.4,0.0054094]
[1749710410039,0.72123,2772.5,2772.4,0.0054094]
[1749710410440,0.72123,2772.5,2772.4,17.4184094]
[1749710412250,0.72122,2772.6,2772.4,17.4004094]
[1749710412540,0.72116,2772.8,2772.6,0.72119]
[1749710412742,0.72116,2772.8,2772.7,3.2078]
[1749710413439,0.72116,2772.8,2772.7,20.5978]
[1749710414044,0.7265494,2772.9,2772.7,21.31896]
[1749710414237,0.0054094,2772.9,2772.8,0.72115]
[1749710414437,3.5582172,2773.8,2772.7,20.5978]
[1749710414635,0.72102,2773.4,2773.2,3.2078]
[1749710414840,0.72102,2773.3,2773.2,3.2078]
[1749710415040,0.7211,2773.0,2772.9,3.2078]
[1749710415243,0.7211,2773.0,2772.9,17.4]
[1749710416146,0.72123,2772.5,2772.4,0.0054094]
[1749710416447,0.72123,2772.5,2772.4,17.4014094]
[1749710416945,2.57473,2772.5,2772.4,17.4014094]
[1749710419343,0.541,2772.6,2772.5,0.72123]
[1749710419547,1.2622,2772.6,2772.5,22.931]
[1749710419751,0.72123,2772.5,2772.4,5.4965094]
[1749710419947,0.72123,2772.5,2772.4,22.2974094]
[1749710420646,0.541,2772.6,2772.4,22.2974094]
[1749710420848,0.7832472,2772.5,2772.4,22.2974094]
[1749710421147,0.0620172,2772.5,2772.4,23.0186694]
[1749710421344,0.0620172,2772.5,2772.4,23.6144694]
[1749710421655,0.7832472,2772.5,2772.4,22.8932094]
[1749710421846,0.7832472,2772.5,2772.4,5.4612094]
[1749710422148,0.7832472,2772.5,2772.4,22.8832094]
[1749710422343,0.0620172,2772.5,2772.4,22.8832094]
[1749710422544,0.7832472,2772.5,2772.4,22.8832094]
[1749710423144,0.0054094,2773.2,2772.4,27.8832094]
[1749710423348,0.0054094,2773.2,2773.0,3.2078]
[1749710423552,0.7264594,2773.2,2773.1,22.267]
[1749710425054,0.0054094,2773.2,2773.1,22.98807]
[1749710425353,0.0054094,2773.2,2773.1,23.63287]
[1749710425757,0.0054094,2773.2,2773.1,22.9118]
[1749710426056,0.7264594,2773.2,2773.1,22.9118]
[1749710426256,0.0054094,2773.2,2773.1,23.63287]
[1749710426847,0.0054094,2773.2,2773.1,24.85057]
[1749710427959,0.2884,2773.8,2773.7,0.72092]
[1749710428155,0.2884,2773.8,2773.7,26.17572]
[1749710431057,0.2884,2773.8,2773.7,3.2078]
[1749710431265,1.00929,2773.8,2773.7,25.4448]
[1749710431962,1.00929,2773.8,2773.7,20.6288]
[1749710432463,0.2884,2773.8,2773.7,21.34972]
[1749710433660,1.00929,2773.8,2773.7,3.2078]
[1749710434258,1.00929,2773.8,2773.7,20.6158]
[1749710434453,1.00929,2773.8,2773.7,20.6138]
[1749710435056,1.0713072,2773.8,2773.7,20.6138]
[1749710436162,0.3504172,2773.8,2773.7,21.33472]
[1749710436859,0.3504172,2773.8,2773.7,21.93692]
[1749710437861,0.72081,2774.2,2773.7,21.216]
[1749710438063,0.72081,2774.2,2774.1,3.2078]
[1749710438361,0.72081,2774.2,2774.1,20.6568]
[1749710439064,1.2514,2774.4,2774.1,20.6568]
[1749710439065,1.2514,2774.4,2774.2,0.72078]
[1749710439264,1.2514,2774.4,2774.1,20.6568]
[1749710439265,0.72077,2774.3,2774.1,21.3776]
[1749710439463,0.72077,2774.3,2774.1,20.6568]
[1749710439668,0.72079,2774.2,2774.1,20.6568]
[1749710440664,0.72077,2774.3,2774.1,21.37761]
[1749710440866,0.72077,2774.3,2774.2,0.72079]
[1749710441167,1.2514,2774.4,2774.1,21.3776]
[1749710441370,0.72078,2774.3,2774.1,20.6568]
[1749710441566,0.72078,2774.3,2774.1,21.37759]
[1749710442069,0.72079,2774.2,2774.1,21.37759]
[1749710442259,1.2514,2774.4,2774.1,20.6568]
[1749710442465,0.72079,2774.2,2774.1,21.3776]
[1749710442666,0.72079,2774.2,2774.1,20.6568]
[1749710443463,1.2514,2774.4,2774.1,20.6038]
[1749710443666,0.72079,2774.2,2774.1,3.9286]
[1749710443865,0.72079,2774.2,2774.1,21.3246]
[1749710445272,0.72079,2774.2,2774.1,20.6038]
[1749710445469,0.72079,2774.2,2774.1,3.2078]
[1749710445662,0.72079,2774.2,2774.1,20.5838]
[1749710445867,0.72079,2774.2,2774.1,3.2078]
[1749710446168,0.72079,2774.2,2774.1,20.5818]
[1749710446667,0.72079,2774.2,2774.1,17.374]
[1749710447773,1.2514,2774.4,2774.1,20.5818]
[1749710447964,0.72079,2774.2,2774.1,20.5818]
[1749710449576,0.72079,2774.2,2774.1,17.374]
[1749710450166,0.7828072,2774.2,2774.1,20.5818]
[1749710450774,0.7828072,2774.2,2774.1,21.30261]
[1749710451674,0.7828072,2774.2,2774.1,20.5818]
[1749710452781,0.0620172,2774.2,2774.1,21.30261]
[1749710453083,0.7828072,2774.2,2774.1,21.30261]
[1749710454175,0.7828072,2774.2,2774.1,20.5818]
[1749710454773,0.0620172,2774.2,2774.1,21.30261]
[1749710454977,0.7828072,2774.2,2774.1,20.5818]
[1749710455581,0.0620172,2774.2,2774.1,21.30261]
[1749710456176,0.7828072,2774.2,2774.1,21.30261]
[1749710456378,0.0620172,2774.2,2774.1,21.30261]
[1749710458384,0.72067,2774.7,2774.5,0.72069]
[1749710458585,0.72067,2774.7,2774.6,17.277]
[1749710458883,1.90647,2774.7,2774.6,17.277]
[1749710459482,1.2401,2774.8,2774.6,17.277]
[1749710459783,0.14344448,2775.1,2774.6,17.277]
[1749710460092,0.14344448,2775.1,2774.9,0.72059]
[1749710460385,0.14344448,2775.1,2775.0,17.271]
[1749710460589,0.86399448,2775.1,2775.0,17.271]
[1749710461180,1.80101,2775.7,2775.0,17.271]
[1749710461381,0.72053,2775.2,2775.1,25.2828]
[1749710461581,0.72053,2775.2,2775.1,20.5378]
[1749710461781,0.72053,2775.2,2775.1,61.3378]
[1749710461975,0.5968,2775.4,2775.1,61.3378]
[1749710462180,0.5968,2775.4,2775.1,20.5378]
[1749710462383,0.72053,2775.2,2775.1,20.5378]
[1749710462582,0.01401134,2775.3,2775.1,20.5378]
[1749710462783,0.01401134,2775.3,2775.2,0.72053]
[1749710463290,0.02802268,2775.3,2775.1,20.5378]
[1749710463485,0.74852268,2775.3,2775.2,17.331]
[1749710463678,1.94812268,2775.3,2775.2,17.331]
[1749710463883,0.02802268,2775.3,2775.2,18.05153]
[1749710464185,0.02802268,2775.3,2775.2,18.64813]
[1749710465896,0.02802268,2775.3,2775.2,17.9276]
[1749710466595,0.02802268,2775.3,2775.2,18.64813]
[1749710467689,0.02802268,2775.3,2775.2,17.9276]
[1749710468190,0.02802268,2775.3,2775.2,18.64813]
[1749710470594,0.74852268,2775.3,2775.2,17.331]
[1749710470790,0.72053,2775.2,2775.1,3.2078]
[1749710470992,1.96933,2775.2,2775.1,3.2078]
[1749710471199,1.96933,2775.2,2775.1,25.94535]
[1749710471392,0.02802268,2775.2,2775.1,25.94535]
[1749710471886,0.74855268,2775.2,2775.1,25.2248]
[1749710472090,0.02802268,2775.2,2775.1,25.94535]
[1749710473296,0.02802268,2775.2,2775.1,3.92835]
[1749710473495,0.02802268,2775.2,2775.1,25.92835]
[1749710478496,0.1304,2775.6,2775.5,0.72045]
[1749710478698,0.1304,2775.6,2775.5,25.88925]
[1749710479506,1.2765,2776.0,2775.5,25.1688]
[1749710479702,1.2765,2776.0,2775.9,3.92814]
[1749710480005,1.2765,2776.0,2775.9,21.13414]
[1749710480494,1.99681,2776.0,2775.9,3.2078]
[1749710480698,0.72039,2775.7,2775.6,3.2078]
[1749710480892,0.72039,2775.7,2775.6,20.4098]
[1749710481098,0.72039,2775.7,2775.6,17.202]
[1749710481492,0.72039,2775.7,2775.6,3.2078]
[1749710481699,0.72039,2775.7,2775.6,20.4078]
[1749710481900,0.72039,2775.7,2775.6,3.2078]
[1749710482101,0.72039,2775.7,2775.6,20.4038]
[1749710483099,0.72039,2775.7,2775.6,17.196]
[1749710483306,0.72047,2775.4,2775.3,3.2078]
[1749710483506,0.72047,2775.4,2775.3,20.3918]
[1749710485003,0.72047,2775.4,2775.3,20.3908]
[1749710487003,0.72047,2775.4,2775.3,3.2078]
[1749710487313,0.72047,2775.4,2775.3,20.3658]
[1749710487704,0.72047,2775.4,2775.3,3.2078]
[1749710487899,0.72047,2775.4,2775.3,20.3608]
[1749710488108,0.72047,2775.4,2775.3,3.2078]
[1749710488306,0.72047,2775.4,2775.3,20.3578]
[1749710488806,0.72047,2775.4,2775.3,3.2078]
[1749710489007,0.72047,2775.4,2775.3,20.3538]
[1749710489208,0.72047,2775.4,2775.3,17.146]
[1749710489409,0.72055,2775.1,2775.0,3.2078]
[1749710489609,0.72055,2775.1,2775.0,20.3488]
[1749710490013,0.72055,2775.1,2775.0,3.2078]